{"text_format":"1","workbook":"xlsx","n_sheets":1,"sheets":["FICHA"],"not_rendered":{"charts":0,"images":1,"macros":1,"external_links":0,"defined_names":27,"comments":0,"pivot_tables":0},"unopened":[],"bounds":{"document_bytes":16777216,"sheet_cells":100000,"rows_first":2000,"rows_last":500,"rows_between":2000,"halvings":0,"cell_chars":16384,"cell_head_chars":4096},"cells_cut":0,"cells_raw":0,"read":"whole","date_system":"1900"}

{"sheet":"FICHA","index":0,"n_rows":417,"n_cols":4,"rows_kept":417,"cut":false,"hidden":false,"merged":[[405,1,405,3],[416,1,416,3],[410,1,410,3],[409,1,409,3],[412,1,412,3],[413,1,413,3],[414,1,414,3],[415,1,415,3],[411,1,411,3]]}
[]
[null,"Nº Expediente Gestiona: (a cumplimentar si se conoce)"]
[null,"AYUNTAMIENTO DE TOTANA.\nCálculo de TASA e ICIO de COMUNICACIONES PREVIAS"]
[]
[null,"ICIO",null,"+"]
[null,"Capítulos","Precio (€)","Medición"]
[null,"1.- Demoliciones",null,"-"]
[null,"Muros"]
[null,"m² Demolición muro mampostería",10.7]
[null,"m² Demolición muro de bloque de hormigón",7.8]
[null,"m² Demolición muro de ladrillo",14.3]
[null,"Tabiquerías"]
[null,"m² Demolición tabique de ladrillo",5.0999999999999996]
[null,"m² Demolición tabique de cartón-yeso",3.5]
[null,"Revestimientos"]
[null,"m² Picado enfoscado de cemento",6.2]
[null,"m² Picado enlucido de yeso",3]
[null,"m² Demolición alicatado",5.4]
[null,"m² Demolición de falso techo",3]
[null,"Pavimentos"]
[null,"Ud. Levantado solado de baldosas",6.6]
[null,"m² Levantado de pavimento de madera, linóleo, pvc",5]
[null,"m² Levantado de solera de hormigón ",7]
[null,"Carpinterías"]
[null,"m² Levantado carpintería interior",9.6999999999999993]
[null,"m² Levantado carpintería exterior",14]
[null,"Cerrajerías"]
[null,"m² Levantado barandilla, reja o valla metálica",10.5]
[null,"Instalaciones"]
[null,"Ud. Levantado aparatos sanitarios y p.p. de instalación",10.8]
[null,"m² Desmontaje instalación eléctrica (por superf. útil estancias)",1.8]
[null,"m² Desmontaje instalación fontanería (por superf. útil estancias)",2.2999999999999998]
[null,"m² Desmontaje instalación calefacción (por superf. útil estancias)",3]
[null,"2.- Reparación de vallados"]
[null,"m² Reparación puntual de malla de alambre sobre postes",10]
[null,"m² Reparación puntual de verja de barrotes o pletinas",120]
[null,"3.- Tabiquerías"]
[null,"m² Tabique de ladrillo (sin revestimientos)",17.5]
[null,"m² Tabique de cartón-yeso (sin revestimientos)",16.5]
[null,"4.- Revestimientos"]
[null,"m² Revestimiento exterior de mortero monocapa",24.1]
[null,"m² Enfoscado de mortero de cemento",7.2]
[null,"m² Enlucido de yeso",6.6]
[null,"m² Alicatado",21.5]
[null,"m² Falso techo (pintura aparte)",18]
[null,"m² Pintura sobre paramentos interiores (paredes o techos)",7]
[null,"m² Pintura sobre paramentos exteriores",10.6]
[null,"m² Reparación parcial de chapado o aplacado exterior",45]
[null,"5.- Pavimentos"]
[null,"m² Solera de hormigón sin acabado superficial",14.3]
[null,"m² Solado de baldosas",22]
[null,"m² Pavimento de madera o imitación (espesor < 15 mm)",25]
[null,"m² Pavimento de madera o imitación (espesor > o = 15 mm)",47.5]
[null,"m² Pavimento de linóleo, pvc, caucho o similar",30]
[null,"m² Pavimento continuo de cemento y/o resinas",19.100000000000001]
[null,"6.- Carpintería exterior"]
[null,"m² Renovación de carpintería exterior (de iguales dimensiones y diseño que la preexistente)",235.2]
[null,"7.- Carpintería interior"]
[null,"Ud. Puerta de entrada a vivienda, oficina, etc.",274.3]
[null,"Ud. Puerta acorazada",852.4]
[null,"Ud. Puerta interior de paso",183.9]
[null,"m² Armario empotrado",109]
[null,"8.- Cerrajerías"]
[null,"m² Renovación de barandilla o reja (de iguales dimensiones y diseño que la preexistente)",133.6]
[null,"m² Renovación de cierre metálico enrollable o plegable (de iguales dimensiones y diseño que la preexistente)",103]
[null,"9.- Cubiertas"]
[null,"m² Retejado de cubierta inclinada (no mayor de 20 m²)",36.4]
[null,"m² Reparación de cubierta ligera (planchas) (no mayor de 20 m²)",15.3]
[null,"m² Reparación de cubierta plana",18.100000000000001]
[null,"ml Reparación de cornisa o alero",15.4]
[null,"ml Colocación de canalón y p.p. de bajante ",31.7]
[null,"10.- Instalaciones"]
[null,"Electricidad"]
[null,"Red interior (por superf. útil estancias)",16]
[null,"Fontanería"]
[null,"Instalación interior de fontanería para baño o aseo",247]
[null,"Aparato sanitario y grifería, incluso p.p. de instalación",330]
[null,"Instalación de fontanería para cocina (incl. lavadero contiguo)",184.5]
[null,"Sistema energía solar térmica para vivienda",1900]
[null,"Saneamiento"]
[null,"Instalación interior de saneamiento para baño o aseo",215]
[null,"Instalación interior de saneamiento cocina y lavadero contiguo",168.5]
[null,"Gas"]
[null,"Instalación interior de gas para vivienda",1200]
[null,"11.- Varios"]
[null,"m² Reforma completa de baño (por superficie útil)",600]
[null,"m² Reforma completa de cocina (por superficie útil)",500]
[null,"Ud. Mostrador fijo de albañilería",153]
[null,"ml Reparación de grietas",30]
[null,"m² Acera, incluso bordillo",50]
[null,"m² Debroce, limpieza y/o nivelación de parcela o solar",2]
[null,"m² Jardinería, incluso p.p de instalación de riego",3.2]
[null,"m² Piscina  (no mayor de 12 m² y de 15 m³)",240]
[null,"m² Balsa de riego de obra (no mayor de 12 m² y de 15 m³)",84]
[null,"m² Reparación de impermeabilización de embalse (no mayor de 400 m²)",20]
[null,"Ud. Lápida en fosa",1188]
[null,"id Lápida en nicho",250]
[null,"12.- Otros (Otros trabajos se valorarán por similitud con los anteriores conceptos, y en su defecto por los precios de mercado)",null,"+"]
[null,"Descripción","Precio (€)","Medición"]
[null,"-"]
[null,"-"]
[null,"-"]
[null,"-"]
[null,"-"]
[null,"-"]
[null,"-"]
[null,"-"]
[null,"-"]
[null,"-"]
[null,"-"]
[null,"Base imponible",null,{"$f":"calculoBaseImponible(mediciones,precios)","v":0}]
[null,"Cuota tributaria",null,{"$f":"calculoCuotaTributaria((D113,D115:D119))","v":3.2000001519918442E-2}]
[null,"Instalaciones y construcciones en general",3.2000000000000001E-2]
[null,"Otras",null,"-"]
[null,"Viviendas que cuenten con calificación definitiva de Viviendas de Protección Oficial",0.03]
[null,"Obras en Polígono Industrial",0.02]
[null,"Obras de rehabilitación de fachadas",0.02]
[null,"Obras de construcción de pantanos",0.02]
[null,"Instalaciones y construcciones acogidas al convenio de regularización de los sectores ganaderos ovino, caprino y porcino",5.0000000000000001E-3]
[null,"Cuota resultante ICIO",null,{"$f":"IF(D157=\"SI\",0,D111*D112)","v":0}]
[null,"Bonificaciones y reducciones (Según / Art. 8 de la vigente ordenanza fiscal)"]
[null,"a) Construcciones, instalaciones y obras declaradas de especial interés.\nLa bonificación habrá de ser solicitada por el sujeto pasivo",{"$f":"calculaMayor((C123,C130,C134,C140))","v":0}]
[null,"Por motivos de CREACIÓN DE EMPLEO",{"$f":"bonificacionPorCreacionDeEmpleo(C124,C127)","v":0}]
[null,"Nueva creación",{"$f":"IF(SUM(C125:C126)>0.95,0.95,SUM(C125:C126))","v":0}]
[null,"Número de trabajadores indefinidos",{"$f":"bonificacionTrabajadoresIndefinidos(D125)","v":0}]
[null,"Número de trabajadores (no necesariamente indefinidos)\nQuienes se acojan a esta modalidad deberán acreditar que han mantenido a lo largo de su primer año de existencia una plantilla media de 10 trabajadores, de lo contrario reintegraran el importe de la bonificación concedida.",{"$f":"bonificacionTrabajadoresTemporales(D126)","v":0}]
[null,"Ampliación o traslado",{"$f":"IF(SUM(C128:C129)>0.95,0.95,SUM(C128:C129))","v":0}]
[null,"Número de trabajadores con que se incrementa la plantilla",{"$f":"bonificacionTrabajadoresIndefinidos(D128)","v":0}]
[null,"Número de trabajadores que pasan de temporales a indefinidos",{"$f":"bonificacionTrabajadoresTransformados(D129)","v":0}]
[null,"Por motivos de CONSERVACIÓN DEL PATRIMONIO HISTÓRICO - ARTÍSTICO",{"$f":"bonificacionConservacionPatrimonio(D131:D133,-1)","v":0}]
[null,"Por ubicarse en inmuebles catalogados Por el planeamiento general",{"$f":"IF(D131=\"si\",50%,0)","v":0}]
[null,"Por desarrollar actividades dirigidas a la promoción, difusión, y/o conservación del patrimonio histórico - artístico o cultural (museos, bibliotecas, salas de exposiciones, galerías de arte, teatros, etc...)",{"$f":"IF(D132=\"si\",50%,0)","v":0}]
[null,"Todas aquellas cuyo objeto principal sea la creación, instalación, ampliación y/o modernización de Sedes Sociales destinadas fundamentalmente a la conservación de tradiciones populares y/o religiosas.",{"$f":"IF(D133=\"si\",50%,0)","v":0}]
[null,"Por motivos de CARÁCTER SOCIAL",{"$f":"bonificacionSocial(D135:D139,-1)","v":0}]
[null,"Por estar constituidas total o parcialmente (50% de sus socios) por personas pertenecientes a colectivos desfavorecidos: disminuidos físicos, psíquicos o sensoriales, inmigrantes, jóvenes menores de 25 años, mujeres con cargas familiares, desempleados mayores de 45 años con mas de un año de antigüedad en la demandada de empleo",{"$f":"IF(D135=\"si\",50%,0)","v":0}]
[null,"Por contemplar en su plantilla al menos un 70% de trabajadores pertenecientes a los colectivos de referencia.",{"$f":"IF(D136=\"si\",50%,0)","v":0}]
[null,"Por desarrollar una actividad destinada a la prestación de servicios a los colectivos antedichos (guarderías laborales, centros de acogida, centros de desintoxicación, etc.)",{"$f":"IF(D137=\"si\",50%,0)","v":0}]
[null,"ONGS, que desarrollen su actividad en el municipio de Totana.",{"$f":"IF(D138=\"si\",50%,0)","v":0}]
[null,"Por el incremento de plazas de aparcamiento respecto del número de plazas mínimo exigible en el planeamiento.",{"$f":"IF(D139=\"si\",95%,0)","v":0}]
[null,"Por declaración por el Pleno, al estimar la concurrencia de especiales circunstancias que justifiquen tal declaración.",{"$f":"C141","v":0}]
[null,"Porcentaje bonificado en acuerdo de pleno (máximo 0,95)",{"$f":"D141","v":0}]
[null,"b) Construcciones, instalaciones u obras en las que se incorporen sistemas para el aprovechamiento térmico o eléctrico de la energía solar para autoconsumo. \nLa aplicación de esta bonificación estará condicionada a que las instalaciones para producción de calor incluyan colectores que dispongan de la correspondiente homologación de la Administración competente. ",{"$f":"IF(D142=\"SI\",0.75,0)","v":0}]
[null,"c) Acondicionamiento de las construcciones ya existentes que favorezcan las condiciones de acceso y habitabilidad de los discapacitados.",{"$f":"IF(D143=\"SI\",0.9,0)","v":0}]
[null,"d) Construcciones, instalaciones u obras referentes a las viviendas de protección oficial.",{"$f":"IF(D144=\"SI\",0.5,0)","v":0}]
[null,"Cuota bonificada (%)",null,{"$f":"(calculaMayor((C122,C142,C143)))+((1-calculaMayor((C122,C142,C143)))*C144)","v":0}]
[null,"Cuota bonificada (€)",null,{"$f":"D120*D145","v":0}]
[null,"Cuota resultante ICIO - Cuota bonificada",null,{"$f":"D120-D146","v":0}]
[]
[null,"TASA"]
[null,"Títulos habilitantes de obras",{"$f":"SUM(C155,C157:C157)","v":0},"+"]
[null,"Base imponible (Para calcularla se debe completar el apartado correspondiente a ICIO)",null,{"$f":"D111","v":0}]
[null,"Obras en Polígono Industrial, de rehabilitación de fachadas, o de construcción de pantanos"]
[null,"Licencias Urbanísticas",{"$f":"IF(D153=\"SI\",calculaTasaLicencia(D$151,D$152),0)","v":0}]
[null,"Comunicación previa",{"$f":"IF(D154=\"SI\",calculaTasaComunicacion(D$151,D$152),0)","v":0},"SI"]
[null,"Nueva tramitación (incluye ampliaciones de licencia)",{"$f":"IF(D155=\"SI\",SUM(C153:C154),0)","v":0},{"$f":"IF(D156<>\"+\",\"SI\",\"\")","v":"SI"}]
[null,"Expedientes en tramitación",null,"-"]
[null,"Cambios de titularidad y prórrogas",{"$f":"IF(D157=\"si\",IF(D153=\"si\",C153*0.25,C154*0.75),0)","v":0},{"$f":"IF(D156=\"+\",\"SI\",\"\")","v":""}]
[null,"Títulos habilitantes de actividad",{"$f":"SUM(C160:C161)","v":0}]
[null,"Tipo de autorización",null,{"$f":"D158","v":0}]
[null,"Autorizaciones en general",{"$f":"IF(D160=\"SI\",SUM(C163:C306),0)","v":0},{"$f":"IF(D161<>\"SI\",\"SI\",\"\")","v":"SI"}]
[null,"Cambios de titularidad",{"$f":"IF(D161=\"SI\",SUM(C163:C306)/2,0)","v":0}]
[null,"Tipo de actividad",null,{"$f":"D158","v":0}]
[null,"Actividades industriales",{"$f":"calculaTasaActividades(D163,750,0.5,6.5,D164:D165)","v":0}]
[null,"Superficie construida (m²)"]
[null,"Kilovatios"]
[null,"Explotaciones extractivas",{"$f":"calculaTasaActividades(D166,1000,0.1,6.5,D167:D168,15000,15000)","v":0}]
[null,"Superficie construida (m²)"]
[null,"Kilovatios"]
[null,"Actividades industriales energéticas"]
[null,"Extracción o captación de gas, así como plantas de producción y distribución, así como su almacenamiento",{"$f":"calculaTasaActividades(D170,3000,2.25,6.5,D171:D172)","v":0}]
[null,"Superficie construida (m²)"]
[null,"Kilovatios"]
[null,"Extracción y refino de combustibles líquidos, así como de su almacenamiento",{"$f":"calculaTasaActividades(D173,3000,2.25,6.5,D174:D175)","v":0}]
[null,"Superficie construida (m²)"]
[null,"Kilovatios"]
[null,"Centrales térmicas, plantas de cogeneración y otras instalaciones industriales para la producción de energía eléctrica, vapor y agua caliente",{"$f":"calculaTasaActividades(D176,3000,2.25,1,D177:D178,,5000,10000)","v":0}]
[null,"Superficie construida (m²)"]
[null,"Kilovatios producidos"]
[null,"Plantas de transformación de energía solar y energía eólica hasta 20 KW",{"$f":"calculaTasaActividades(D179,150,5,0,D180)","v":0}]
[null,"Kilovatios producidos"]
[null,"Plantas de transformación de energía solar y energía eólica a partir de 100 KW",{"$f":"calculaTasaActividades(D181,320,4.25,0,D182)","v":0}]
[null,"Kilovatios producidos"]
[null,"Plantas de transformación de energía solar y energía eólica a partir de 100 KW",{"$f":"calculaTasaActividades(D183,750,1,0,D184)","v":0}]
[null,"Kilovatios producidos"]
[null,"Talleres"]
[null,"Talleres artesanos",{"$f":"calculaTasaActividades(D186,150,0.5,0,D187:D187)","v":0}]
[null,"Superficie construida (m²)"]
[null,"Talleres auxiliares de la construcción: ferrallista, albañilería, escayolistas, cristalería, fontanería, calefacción y aire acondicionado, electricidad, etc. ",{"$f":"calculaTasaActividades(D188,320,0.5,1.5,D189:D190)","v":0}]
[null,"Superficie construida (m²)"]
[null,"Kilovatios"]
[null,"Talleres de carpintería",{"$f":"calculaTasaActividades(D191,320,1,2.5,D192:D193)","v":0}]
[null,"Superficie construida (m²)"]
[null,"Kilovatios"]
[null,"Talleres de relojería, orfebrería, platería, joyería, bisutería, óptica, ortopedia y prótesis",{"$f":"calculaTasaActividades(D194,150,0.5,1.5,D195:D196)","v":0}]
[null,"Superficie construida (m²)"]
[null,"Kilovatios"]
[null,"Talleres de confección, sastrería, peletería, géneros de punto, sombrerería y guarnicionería",{"$f":"calculaTasaActividades(D197,150,0.5,1.5,D198:D199)","v":0}]
[null,"Superficie construida (m²)"]
[null,"Kilovatios"]
[null,"Talleres de reparación de electrodomésticos, radio-telefonía, televisión, maquinaria de oficina y maquinas de coser",{"$f":"calculaTasaActividades(D200,150,0.5,1.5,D201:D202)","v":0}]
[null,"Superficie construida (m²)"]
[null,"Kilovatios"]
[null,"Talleres de reparación de vehículos y desguace",{"$f":"calculaTasaActividades(D203,320,1.5,2.5,D204:D205)","v":0}]
[null,"Superficie construida (m²)"]
[null,"Kilovatios"]
[null,"Talleres de reparación de maquinaria industrial",{"$f":"calculaTasaActividades(D206,320,1,2.5,D207:D208)","v":0}]
[null,"Superficie construida (m²)"]
[null,"Kilovatios"]
[null,"Imprentas",{"$f":"calculaTasaActividades(D209,320,1,2.5,D210:D211)","v":0}]
[null,"Superficie construida (m²)"]
[null,"Kilovatios"]
[null,"Recuperación, tratamientos y almacenamiento de residuos y subproductos"]
[null,"Vertederos y Depósitos de lodos",{"$f":"calculaTasaActividades(D213,750,0.75,0,D214)","v":0}]
[null,"Superficie construida (m²)"]
[null,"Almacenamiento, plantas de tratamientos de residuos sólidos urbanos, industriales, tóxicos y peligrosos, agropecuarios y hospitalarios",{"$f":"calculaTasaActividades(D215,750,0.5,2.35,D216:D217)","v":0}]
[null,"Superficie construida (m²)"]
[null,"Superficie construida (m²)"]
[null,"Estaciones depuradoras y desalinizadoras de aguas",{"$f":"calculaTasaActividades(D218,750,1.5,2.35,D219:D220)","v":0}]
[null,"Superficie construida (m²)"]
[null,"Kilovatios"]
[null,"Depósitos de lodos",{"$f":"calculaTasaActividades(D221,750,3.5,0,D222)","v":0}]
[null,"Superficie construida (m²)"]
[null,"Otras infraestructuras"]
[null,"Explotación de acuíferos",{"$f":"calculaTasaActividades(D224,750,3.25,0,D225)","v":0}]
[null,"Kilovatios"]
[null,"Instalación y ampliación de aeropuertos, aeródromos y helipuertos de uso público o particular, incluyendo las pistas para despegue y aterrizaje de ultraligeros",{"$f":"calculaTasaActividades(D226,750,0.1,4.25,D227:D228)","v":0}]
[null,"Superficie construida (m²)"]
[null,"Kilovatios"]
[null,"Campos de golf",{"$f":"calculaTasaActividades(D229,750,0.9,12.5,D230:D231,25000,25000)","v":0}]
[null,"Superficie construida (m²)"]
[null,"Kilovatios"]
[null,"Pistas y circuitos de velocidad",{"$f":"calculaTasaActividades(D232,750,0.9,0,D233:D233)","v":0}]
[null,"Superficie construida (m²)"]
[null,"Instalaciones para la explotación y envasado de agua de manantial",{"$f":"calculaTasaActividades(D234,750,1.25,1.35,D235:D236)","v":0}]
[null,"Superficie construida (m²)"]
[null,"Kilovatios"]
[null,"Estaciones de servicio y similares",{"$f":"calculaTasaActividades(D237,750,1.75,1.25,D238:D239)","v":0}]
[null,"Superficie construida (m²)"]
[null,"Kilovatios"]
[null,"Actividades ganaderas"]
[null,"Explotación de ganado bovino",{"$f":"calculaTasaActividades(D241,320,2,0,D242)","v":0}]
[null,"Nº de cabezas"]
[null,"Explotación de ganado ovino y caprino",{"$f":"calculaTasaActividades(D243,320,0.5,0,D244)","v":0}]
[null,"Nº de cabezas"]
[null,"Explotación de ganado equino",{"$f":"calculaTasaActividades(D245,320,2,0,D246)","v":0}]
[null,"Nº de cabezas"]
[null,"Explotación de ganado porcino",{"$f":"calculaTasaActividades(D247,320,2,0,D248)","v":0}]
[null,"Nº de UGM"]
[null,"Avicultura",{"$f":"calculaTasaActividades(D249,320,0.03,0,D250)","v":0}]
[null,"Nº de cabezas"]
[null,"Cunicultura",{"$f":"calculaTasaActividades(D251,320,0.3,0,D252)","v":0}]
[null,"Nº de cabezas"]
[null,"Apicultura",{"$f":"calculaTasaActividades(D253,150,0.15,0,D254)","v":0}]
[null,"Nº de colmenas"]
[null,"Cría o guarda de perros",{"$f":"calculaTasaActividades(D255,320,0.5,0,D256)","v":0}]
[null,"Nº de cabezas"]
[null,"Otras explotaciones de cría de animales en cautividad",{"$f":"calculaTasaActividades(D257,320,0.5,0,D258)","v":0}]
[null,"Nº de cabezas"]
[null,"Explotaciones domésticas",{"$f":"calculaTasaActividades(D259,150,0,0)","v":0}]
[null,"Comercio al por mayor",{"$f":"calculaTasaActividades(D260,320,0.5,1.5,D261:D262)","v":0}]
[null,"Superficie construida (m²)"]
[null,"Kilovatios"]
[null,"Comercio al por menor"]
[null,"Comercio al por menor cuya superficie no sea superior a 200 m2 o cuya potencia instalada no sea superior a 10 KW. Excepto de alimentación.",{"$f":"calculaTasaActividades(D264,150,0,0)","v":0}]
[null,"Comercio al por menor cuya superficie sea superior a 200 m2 o cuya potencia instalada sea superior a 10 KW. Excepto de alimentación",{"$f":"calculaTasaActividades(D265,150,2,3,D266:D267)","v":0}]
[null,"Superficie construida a partir de 200 (m²)"]
[null,"Kilovatios"]
[null,"Comercio de abonos y productos fitosanitarios así como su almacenamiento",{"$f":"calculaTasaActividades(D268,320,0.5,1.5,D269:D270)","v":0}]
[null,"Superficie construida (m²)"]
[null,"Kilovatios"]
[null,"Actividades de almacenamiento"]
[null,"Almacenamiento",{"$f":"calculaTasaActividades(D272,320,0.5,1.5,D273:D274)","v":0}]
[null,"Superficie construida (m²)"]
[null,"Kilovatios"]
[null,"Almacenamiento anexo a una actividad",{"$f":"calculaTasaActividades(D275,0,0.25,1,D276:D277)","v":0}]
[null,"Superficie construida (m²)"]
[null,"Kilovatios"]
[null,"Servicios de alimentación"]
[null,"Restaurantes, cafeterías, cafés y bares (sin música)",{"$f":"calculaTasaActividades(D279,320,1,2,D280:D281)","v":0}]
[null,"Superficie construida (m²)"]
[null,"Kilovatios"]
[null,"Restaurantes, cafeterías, cafés y bares (con música)",{"$f":"calculaTasaActividades(D282,320,2,4,D283:D284)","v":0}]
[null,"Superficie construida (m²)"]
[null,"Kilovatios"]
[null,"Comercio al por menor cuya superficie no sea superior a 200 m² o cuya potencia instalada no sea superior a 10 KW., sin obrador",{"$f":"calculaTasaActividades(D285,150,0,0)","v":0}]
[null,"Comercio al por menor cuya superficie no sea superior a 200 m² o cuya potencia instalada no sea superior a 10 KW., con obrador",{"$f":"calculaTasaActividades(D286,320,0,0)","v":0}]
[null,"Comercio al por menor cuya superficie sea superior a 200 m² o cuya potencia\ninstalada sea superior a 10 KW",{"$f":"calculaTasaActividades(D287,320,2,3,D288:D289)","v":0}]
[null,"Superficie construida (m²)"]
[null,"Kilovatios"]
[null,"Servicios de hospedaje en hoteles, moteles, hostales, pensiones, hoteles/apartamentos, alojamientos turísticos extrahoteleros y similares",{"$f":"calculaTasaActividades(D290,750,22,0,D291)","v":0}]
[null,"habitaciones / alojamientos / plazas"]
[null,"Guarda y custodia de vehículos en aparcamientos, parkings o similares",{"$f":"calculaTasaActividades(D292,320,15,0,D293)","v":0}]
[null,"vehículos"]
[null,"Agencias de transporte, servicios de mudanzas y transporte de viajeros",{"$f":"calculaTasaActividades(D294,320,100,0,D295)","v":0}]
[null,"vehículos"]
[null,"Instituciones financieras, seguros e inmobiliarias"]
[null,"Bancos, cajas de ahorros y otras instituciones financieras",{"$f":"calculaTasaActividades(D297,2200,5,0,D298)","v":0}]
[null,"Superficie construida (m²)"]
[null,"Agencias de seguros y actividades inmobiliarias",{"$f":"calculaTasaActividades(D299,320,3.5,0,D300)","v":0}]
[null,"Superficie construida (m²)"]
[null,"Servicios prestados y alquileres"]
[null,"Servicios técnicos de ingeniería, arquitectura, urbanismo, servicios financieros y contables, servicios de publicidad, relaciones públicas y similares, empresas de estudios de mercado, locutorios y oficinas en general",{"$f":"calculaTasaActividades(D302,320,3,0,D303)","v":0}]
[null,"Superficie construida (m²)"]
[null,"Alquiler de bienes muebles, como maquinaria, equipos automóviles, y otros medios de transporte, alquiler de bienes de consumo, de películas de video y otros análogos",{"$f":"calculaTasaActividades(D304,320,3.25,0,D305)","v":0}]
[null,"Superficie construida (m²)"]
[null,"Otros servicios"]
[null,"Guarderías, colegios mayores, enseñanza de conducción de vehículos terrestres, acuáticos, aeronáuticos y otras actividades de enseñanza, como idiomas, corte y confección, mecanografía, preparación de exámenes, oposiciones y similares",{"$f":"calculaTasaActividades(D307,320,4,0,D308)","v":0}]
[null,"Superficie construida (m²)"]
[null,"Sanidad y servicios veterinarios, como hospitales, clínicas, consultorios médicos, balnearios, clínicas de urgencia, centros de socorro, servicios de naturopatía y acupuntura, consultas y clínicas de estomatología y odontología, oficina de farmacia y otros servicios sanitarios",{"$f":"calculaTasaActividades(D309,750,3,3,D310:D311)","v":0}]
[null,"Superficie construida (m²)"]
[null,"Kilovatios"]
[null,"Teatros y otros servicios recreativos y culturales, como producción, distribución y exhibición de películas cinematográficas y videos",{"$f":"calculaTasaActividades(D312,750,1.5,0,D313)","v":0}]
[null,"Superficie construida (m²)"]
[null,"Servicios de radiodifusión, televisión y servicios de enlace y transmisión de señales de televisión",{"$f":"calculaTasaActividades(D314,750,3,3,D315:D316)","v":0}]
[null,"Superficie construida (m²)"]
[null,"Kilovatios"]
[null,"Instalación de antenas y demás servicios de telecomunicaciones",{"$f":"calculaTasaActividades(D317,2800,0,0)","v":0}]
[null,"Instalaciones deportivas",{"$f":"calculaTasaActividades(D318,320,1,0,D319)","v":0}]
[null,"Superficie construida (m²)"]
[null,"Salas de baile, discotecas y similares",{"$f":"calculaTasaActividades(D320,750,5,4,D321:D322)","v":0}]
[null,"Superficie construida (m²)"]
[null,"Kilovatios"]
[null,"Casinos de juego, Bingos y Salones de Juego",{"$f":"calculaTasaActividades(D323,2200,10,4,D324:D325,25000,25000)","v":0}]
[null,"Superficie construida (m²)"]
[null,"Kilovatios"]
[null,"Salones Recreativos",{"$f":"calculaTasaActividades(D326,750,3,0,D327)","v":0}]
[null,"Superficie construida (m²)"]
[null,"Servicios personales como, salones de peluquería e institutos de belleza y gabinete de estética",{"$f":"calculaTasaActividades(D328,150,1,0,D329)","v":0}]
[null,"Superficie construida (m²)"]
[null,"Servicios personales como, lavanderías, tintorerías",{"$f":"calculaTasaActividades(D330,320,1,1.5,D331:D332)","v":0}]
[null,"Superficie construida (m²)"]
[null,"Kilovatios"]
[null,"Servicios fotográficos, máquinas automáticas fotográficas y servicios de fotocopias. Agencias de prestación de servicios domésticos y otros servicios personales",{"$f":"calculaTasaActividades(D333,150,1,0,D334)","v":0}]
[null,"Superficie construida (m²)"]
[null,"Parque de recreo, ferias y otros servicios relacionados con el espectáculo, organización de congresos, parque o recintos feriales",{"$f":"calculaTasaActividades(D335,750,2.5,0,D336)","v":0}]
[null,"Superficie construida (m²)"]
[null,"Servicios de lavado y engrase de vehículos y similares",{"$f":"calculaTasaActividades(D337,420,1.75,0,D338)","v":0}]
[null,"Superficie construida (m²)"]
[null,"Instrumentos urbanísticos de planeamiento y gestión de iniciativa particular",{"$f":"C341+C345+C349+C353+C357+C361+C365+C369+C373+C377","v":0}]
[null,"Instrumentos de planeamiento"]
[null,"Planes Parciales y Planes Especiales",{"$f":"calculaPlanesParciales(D342,D343,D344)","v":0}]
[null,"Aprovechamiento de referencia (m2t/m2s)"]
[null,"Superficie (m2)"]
[null,"Coeficiente reductor por uso industrial o actividades económicas"]
[null,"Estudios de detalle",{"$f":"calculaEstudiosDetalle(D346,D347)","v":0}]
[null,"Superficie (m2)"]
[null,"Coeficiente reductor por uso industrial o actividades económicas"]
[null,"Instrumentos de gestión"]
[null,"Delimitación de Unidades de Ejecución",{"$f":"calculaTasaGestion(D350,D351,D352,0.06,303)","v":0}]
[null,"Superficie (m2)"]
[null,"Coeficiente reductor por uso industrial o actividades económicas"]
[null,"Se trata de una modificación"]
[null,"Establicimiento o modificación del sistema de actuación",{"$f":"calculaTasaGestion(D354,D355,D356,0.06,303)","v":0}]
[null,"Superficie (m2)"]
[null,"Coeficiente reductor por uso industrial o actividades económicas"]
[null,"Se trata de una modificación"]
[null,"Proyecto de Reparcelación para la gestión de unidades integradas",{"$f":"calculaTasaGestion(D358,D359,D360,0.16,716)","v":0}]
[null,"Superficie (m2)"]
[null,"Coeficiente reductor por uso industrial o actividades económicas"]
[null,"Se trata de una modificación"]
[null,"Constitución de Junta de compensación",{"$f":"calculaTasaGestion(D362,D363,D364,0.06,716)","v":0}]
[null,"Superficie (m2)"]
[null,"Coeficiente reductor por uso industrial o actividades económicas"]
[null,"Se trata de una modificación"]
[null,"Constitución de Asociación Administrativa de Cooperación",{"$f":"calculaTasaGestion(D366,D367,D368,0.06,397)","v":0}]
[null,"Superficie (m2)"]
[null,"Coeficiente reductor por uso industrial o actividades económicas"]
[null,"Se trata de una modificación"]
[null,"Proyecto de Urbanización",{"$f":"calculaTasaGestion(D370,D371,D372,0.06,716)","v":0}]
[null,"Superficie (m2)"]
[null,"Coeficiente reductor por uso industrial o actividades económicas"]
[null,"Se trata de una modificación"]
[null,"Expediente de expropiación a favor de particulares",{"$f":"calculaTasaGestion(D374,D375,D376,0.03,184)","v":0}]
[null,"Superficie (m2)"]
[null,"Coeficiente reductor por uso industrial o actividades económicas"]
[null,"Se trata de una modificación"]
[null,"Inspección técnica realizada a instancia de particulares",{"$f":"80*D378","v":0}]
[null,"Numero de inspecciones"]
[null,"Otros",{"$f":"SUM(C380,C383,C386,C388,C390,C392,C394,C397,C399)","v":0}]
[null,"Licencias de primera ocupación solicitadas a instancia de particulares",{"$f":"calculaTasaOtros(D381,46.35,D382)","v":0}]
[null,"Nº de licencias (1 Ud. si se deja en blanco o se indica 0)"]
[null,"¿Se trata de una modificación? (NO en caso de no indicar lo contrario)"]
[null,"Licencias de parcelación o segregación solicitadas a instancia de particulares",{"$f":"calculaTasaOtros(D384,53.28,D385)","v":0}]
[null,"Nº de porciones a segregar (1 Ud. si se deja en blanco o se indica 0)"]
[null,"¿Se trata de una modificación? (NO en caso de no indicar lo contrario)"]
[null,"Certificaciones urbanísticas",{"$f":"calculaTasaOtros(D387,47)","v":0}]
[null,"Nº de certificados  (1 Ud. si se deja en blanco o se indica 0)"]
[null,"Licencias de segunda ocupación",{"$f":"calculaTasaOtros(D389,49)","v":0}]
[null,"Nº de licencias (1 Ud. si se deja en blanco o se indica 0)"]
[null,"Declaraciones de interés público y declaraciones de obras e instalaciones al servicio de una obra pública",{"$f":"calculaTasaOtros(D391,58)","v":0}]
[null,"Nº de declaraciones de interés público (1 Ud. si se deja en blanco o se indica 0)"]
[null,"Tira de cuerdas",{"$f":"calculaTasaOtros(D393,28)","v":0}]
[null,"Nº de tiras de cuerdas (1 Ud. si se deja en blanco o se indica 0)"]
[null,"Expedientes de ruina",{"$f":"calculaTasaRuina(D395,D396,1555,210)","v":0}]
[null,"Nº de expedientes de ruina (1 Ud. si se deja en blanco o se indica 0)"]
[null,"¿Con contradicción? (NO en caso de no indicar lo contrario)"]
[null,"Ordenes de ejecución",{"$f":"calculaTasaOtros(D398,158)","v":0}]
[null,"Nº de ordenes de ejecución (1 Ud. si se deja en blanco o se indica 0)"]
[null,"Declaración de obra nueva ",{"$f":"calculaTasaOtros(D400,100)","v":0}]
[null,"Nº de declaraciones de obra nueva (1 Ud. si se deja en blanco o se indica 0)"]
[null,"Tasa resultante",null,{"$f":"C150+C158+C339+C379","v":0}]
[]
[null,"Total liquidación ICIO + TASA",null,{"$f":"D147+C150","v":0}]
[]
[null,"FORMA DE PAGO"]
[null,"A través de la Subsede Electrónica de Gestión Tributaria y Recaudación. \nEl acceso a dicha subsede, se ha de realizar a través de la sede electrónica del Ayuntamiento de Totana disponible en el enlace que más abajo se facilita.\nDesde dicha sede electrónica ha de pulsar en  \"Subsede Triburaria\", situado en:\n\"Enlaces de interes -> WEBS DE INTERÉS->Subsede Tributaria\".\nFinalmente desde la subsede tributaria se ha de pulsar en \"Autoliquidación de tasas urbanisticas\", situado en \n\"Información ->Autoliquidaciones->Autoliquidación de tasas urbanísticas\"."]
[null,"SEDE ELECTRÓNICA DEL AYUNTAMIENTO DE TOTANA"]
[]
[null,"INSTRUCCIONES DE USO"]
[null,"1.- Por razonas de fiabilidad, la hoja se encuentra bloqueada."]
[null,"2.- Salvo en lo dispuesto en el apartado tercero. Las únicas celdas en las que se pueden introducir datos se encuentra en la columna denominada medición, situada bajo el escudo de Totana"]
[null,"3.- La incorporación de unidades de obra distintas a las contenidas los capírulos del 1 al 11, o de partidas alzadas, se ha de efectuar a través del capitulo nº12 denominado \"otros\", el cual sí que permite incorporar descripción de la partida, precio y medición."]
[null,"4.- Para incorporar las mediciones, se han de desplegar los distintos capítulos hasta localizar la partida correspondiente. Ello se consigue a través de listas desplegables en las que la opción \"+\", despliega el capitulo y la opción \"-\", o sin contenido, pliega el capitulo."]
[null,"5.- En caso de plegar el capítulo, para no generar contenido oculto, se eliminan los datos de medición introducida, por lo que para generar contenido el capitulo ha de encontrarse desplegado y la partida visible"]
[null,"6.- El apartado de bonificaciones, únicamente se debe de cumplimentar si se tienen derecho a ellas."]
[null,"7.- En cualquier caso, las bonificaciones correspondientes al apartado a) han de ser solicitadas con carácter previo"]
[null,"8.- En el apartado correspondiente a la tasa, como en el resto de la hoja, únicamente, se pueden modificar las celdas desprotegidas. A través de ellas, la aplicación realiza las correcciones necesarias en el resto de celdas"]